[Event "Panevezys Elite Open 2019"]
[Site "Panevezys"]
[Date "2019.06.27"]
[Round "6.12"]
[White "Stasans, Aivars"]
[Black "Sinitsina, Anastassia"]
[Result "0-1"]
[ECO "B48"]
[WhiteElo "2039"]
[BlackElo "2095"]
[Annotator "NA RC"]
[PlyCount "120"]
[EventDate "2019.06.24"]
[EventType "swiss"]
[EventCountry "LTU"]
[SourceTitle "playchess.com"]
[Source "ChessBase"]
[SourceQuality "1"]
[TimeControl "40/5400+30:1800+30"]

1. e4 {[%emt 0:00:00]} c5 {[%emt 0:00:00]} 2. Nf3 {[%emt 0:00:08]} e6 {[%emt 0:00:05]} 3. d4 {[%emt 0:00:07]} cxd4 {[%emt 0:00:20]} 4. Nxd4 {[%emt 0:00:07]} Nc6 {[%emt 0:00:43]} 5. Nc3 {[%emt 0:00:11]} Qc7 {[%emt 0:00:44]} 6. Be3 {[%emt 0:00:15]} a6 {[%emt 0:00:16]} 7. Qd2 {[%emt 0:00:11]} Nf6 {[%emt 0:00:23]} 8. f3 {[%emt 0:00:16]} Ne5 {[%emt 0:05:36]} 9. Bf4 {[%emt 0:09:38]} d6 {[%emt 0:03:39]} 10. Nb3 {[%emt 0:08:19]} Be7 {[%emt 0:02:28]} 11. O-O-O {[%emt 0:01:00]} O-O $15 {[%emt 0:08:01]} 12. Kb1 {[%emt 0:01:05]} b5 {[%emt 0:00:46]} 13. a3 {[%emt 0:10:59]} Bb7 {[%emt 0:02:49]} 14. Qf2 {[%emt 0:06:53]} Ng6 {[%emt 0:04:46]} 15. Bg3 {[%emt 0:03:04]} Nh5 {[%emt 0:04:30]} 16. f4 {[%emt 0:03:44]} Bf6 {[%emt 0:06:20]} 17. Rd3 {[%emt 0:04:06]} Nxg3 {[%emt 0:00:42]} 18. hxg3 {[%emt 0:01:14]} Rac8 {[%emt 0:06:16]} 19. Qe3 {[%emt 0:13:17]} a5 {[%emt 0:06:06]} 20. Nd4 {[%emt 0:05:02]} b4 {[%emt 0:00:47]} 21. Ndb5 {[%emt 0:00:33]} Qb8 {[%emt 0:00:25]} 22. axb4 {[%emt 0:06:18]} axb4 {[%emt 0:00:08]} 23. Nd1 {[%emt 0:00:29]} Ba6 {[%emt 0:01:26]} 24. Nxd6 {[%emt 0:08:17]} Bxd3 {[%emt 0:00:17]} 25. Bxd3 {[%emt 0:01:09]} Qxd6 {[%emt 0:00:24]} 26. e5 {[%emt 0:00:01]} Qc5 {[%emt 0:01:17]} 27. exf6 {[%emt 0:00:31]} Qxe3 {[%emt 0:00:18]} 28. Nxe3 {[%emt 0:00:01]} gxf6 {[%emt 0:00:16]} 29. Ka2 {[%emt 0:02:14]} f5 {[%emt 0:05:30]} 30. Kb3 {[%emt 0:01:15]} Rb8 {[%emt 0:00:04]} 31. Ra1 {[%emt 0:01:03]} h5 {[%emt 0:01:14]} 32. Rf1 {[%emt 0:02:19]} Kg7 {[%emt 0:00:26]} 33. Nc4 {[%emt 0:01:13]} Rh8 {[%emt 0:01:16]} 34. Nd6 {[%emt 0:00:38]} h4 {[%emt 0:01:58]} 35. gxh4 {[%emt 0:00:28]} Rxh4 {[%emt 0:00:11]} 36. g3 {[%emt 0:00:07]} Rh3 {[%emt 0:01:43]} 37. Rg1 {[%emt 0:00:48]} Kf6 {[%emt 0:00:30]} 38. Kc4 {[%emt 0:02:31]} Ne7 {[%emt 0:01:39]} 39. Kc5 {[%emt 0:02:14]} Rg8 {[%emt 0:01:31]} 40. Kxb4 {[%emt 0:00:31]} Nd5+ {[%emt 0:00:14]} 41. Kc5 {[%emt 0:30:56]} Nxf4 {[%emt 0:30:32]} 42. gxf4 {[%emt 0:02:02]} Rxg1 {[%emt 0:00:08]} 43. b4 {[%emt 0:00:18]} Ke7 {[%emt 0:14:36]} 44. Nc4 {[%emt 0:03:06]} f6 {[%emt 0:02:29]} 45. b5 {[%emt 0:00:20]} Kd7 {[%emt 0:00:46]} 46. b6 {[%emt 0:02:05]} Rg8 {[%emt 0:02:41]} 47. Nd6 {[%emt 0:00:00]} Rb8 {[%emt 0:00:00]} 48. Bb5+ {[%emt 0:00:00]} Ke7 {[%emt 0:00:00]} 49. Bd3 {[%emt 0:00:00]} Rhh8 {[%emt 0:00:00]} 50. Ba6 {[%emt 0:00:00]} Rxb6 {[%emt 0:00:00]} 51. Nxf5+ {[%emt 0:00:00]} exf5 {[%emt 0:00:00]} 52. Kxb6 {[%emt 0:00:00]} Rh4 {[%emt 0:00:00]} 53. c4 {[%emt 0:00:00]} Rxf4 {[%emt 0:00:00]} 54. c5 {[%emt 0:00:00]} Rb4+ {[%emt 0:00:00]} 55. Kc6 {[%emt 0:00:00]} f4 {[%emt 0:00:00]} 56. Kd5 {[%emt 0:00:00]} f3 {[%emt 0:00:00]} 57. c6 {[%emt 0:00:00]} Kd8 {[%emt 0:00:00]} 58. Kd6 {[%emt 0:00:00]} Rd4+ {[%emt 0:00:00]} 59. Kc5 {[%emt 0:00:00]} Rd2 {[%emt 0:00:00]} 60. Kb6 {[%emt 0:00:00]} Rb2+ {[%emt 0:00:00]} 0-1

[Event "Panevezys Elite Open 2019"]
[Site "Panevezys"]
[Date "2019.06.28"]
[Round "7.2"]
[White "Harutjunyan, Gevorg"]
[Black "Brazdzionis, Andrius"]
[Result "1-0"]
[ECO "C12"]
[WhiteElo "2446"]
[BlackElo "2337"]
[Annotator "NA"]
[PlyCount "57"]
[EventDate "2019.06.24"]
[EventType "swiss"]
[EventCountry "LTU"]
[SourceTitle "playchess.com"]
[Source "ChessBase"]
[SourceQuality "1"]
[TimeControl "40/5400+30:1800+30"]

1. e4 {[%emt 0:00:00]} e6 {[%emt 0:00:00]} 2. d4 {[%emt 0:00:00]} d5 {[%emt 0:00:00]} 3. Nc3 {[%emt 0:00:00]} Nf6 {[%emt 0:00:00]} 4. Bg5 {[%emt 0:00:00]} Bb4 {[%emt 0:00:05]} 5. e5 {[%emt 0:00:10]} h6 {[%emt 0:00:07]} 6. Be3 {[%emt 0:00:31]} Ne4 {[%emt 0:00:07]} 7. Qg4 {[%emt 0:00:23]} g6 {[%emt 0:00:07]} 8. a3 {[%emt 0:00:17]} Bxc3+ {[%emt 0:00:13]} 9. bxc3 {[%emt 0:00:06]} c5 {[%emt 0:00:55]} 10. Bd3 {[%emt 0:00:52]} Nxc3 {[%emt 0:00:39]} 11. dxc5 {[%emt 0:01:02]} Qa5 {[%emt 0:00:23]} 12. Qb4 {[%emt 0:16:57]} Qxb4 {[%emt 0:04:13]} 13. axb4 {[%emt 0:00:06]} Bd7 {[%emt 0:00:06]} 14. Nf3 {[%emt 0:01:41]} Bb5 {[%emt 0:10:06]} 15. Kd2 {[%emt 0:08:37]} Bxd3 {[%emt 0:06:44]} 16. Kxd3 {[%emt 0:00:45]} Nb5 {[%emt 0:08:17]} 17. Ra5 {[%emt 0:00:39]} Nc7 {[%emt 0:01:21]} 18. b5 {[%emt 0:00:35]} Kd8 {[%emt 0:02:37]} 19. Rha1 {[%emt 0:03:02]} Kc8 {[%emt 0:00:08]} 20. c6 bxc6 {[%emt 0:06:39]} 21. Rxa7 {[%emt 0:11:20]} Rxa7 {[%emt 0:00:07]} 22. Rxa7 {[%emt 0:00:05]} cxb5 {[%emt 0:01:12]} 23. Bb6 {[%emt 0:00:48]} Nba6 {[%emt 0:00:29]} 24. Nd4 {[%emt 0:01:12]} Re8 {[%emt 0:06:12]} 25. h4 {[%emt 0:07:50]} Rg8 {[%emt 0:06:06]} 26. Bxc7 {[%emt 0:00:47]} Nxc7 {[%emt 0:01:26]} 27. Nxb5 {[%emt 0:00:07]} Ne8 {[%emt 0:00:26]} 28. Rxf7 {[%emt 0:01:11]} g5 {[%emt 0:00:11]} 29. Na7+ {[%emt 0:00:08]} 1-0

[Event "Panevezys Elite Open 2019"]
[Site "Panevezys"]
[Date "2019.06.28"]
[Round "7.3"]
[White "Laurusas, Tomas"]
[Black "Stremavicius, Titas"]
[Result "1/2-1/2"]
[ECO "A06"]
[WhiteElo "2507"]
[BlackElo "2477"]
[Annotator "RC"]
[PlyCount "154"]
[EventDate "2019.06.24"]
[EventType "swiss"]
[EventCountry "LTU"]
[SourceTitle "playchess.com"]
[Source "ChessBase"]
[SourceQuality "1"]
[TimeControl "40/5400+30:1800+30"]

1. Nf3 {[%emt 0:00:00]} d5 {[%emt 0:00:45]} 2. g3 {[%emt 0:00:00]} Nf6 {[%emt 0:00:18]} 3. Bg2 {[%emt 0:00:00]} e6 {[%emt 0:00:25]} 4. O-O {[%emt 0:00:05]} b5 {[%emt 0:06:52]} 5. b3 {[%emt 0:03:41]} c6 {[%emt 0:04:48]} 6. Bb2 {[%emt 0:05:09]} Be7 {[%emt 0:08:19]} 7. d3 {[%emt 0:10:34]} a5 {[%emt 0:04:02]} 8. e4 {[%emt 0:08:56]} O-O {[%emt 0:04:35]} 9. Nbd2 {[%emt 0:02:33]} a4 {[%emt 0:02:45]} 10. c4 a3 {[%emt 0:08:12]} 11. Bd4 {[%emt 0:12:59]} c5 {[%emt 0:14:14]} 12. Bxf6 {[%emt 0:07:13]} Bxf6 {[%emt 0:00:12]} 13. e5 {[%emt 0:00:16]} Be7 {[%emt 0:00:14]} 14. d4 bxc4 {[%emt 0:26:03]} 15. bxc4 {[%emt 0:04:21]} Ba6 {[%emt 0:00:07]} 16. dxc5 {[%emt 0:01:41]} Bxc5 {[%emt 0:03:20]} 17. Qc2 {[%emt 0:01:26]} Nd7 {[%emt 0:00:59]} 18. Rfd1 {[%emt 0:09:52]} Qc7 {[%emt 0:01:08]} 19. Rac1 {[%emt 0:01:13]} Rac8 {[%emt 0:02:39]} 20. Ng5 {[%emt 0:05:56]} g6 {[%emt 0:00:03]} 21. Qa4 {[%emt 0:00:16]} Qa7 {[%emt 0:00:21]} 22. cxd5 {[%emt 0:00:06]} Bxf2+ {[%emt 0:00:07]} 23. Kh1 {[%emt 0:00:05]} Rxc1 {[%emt 0:01:51]} 24. Rxc1 {[%emt 0:00:07]} Be3 {[%emt 0:02:16]} 25. Qh4 {[%emt 0:02:52]} h5 {[%emt 0:01:47]} 26. dxe6 {[%emt 0:03:19]} Bxd2 {[%emt 0:02:37]} 27. Rd1 {[%emt 0:10:43]} Qe3 {[%emt 0:00:08]} 28. exf7+ {[%emt 0:00:25]} Kh8 {[%emt 0:00:14]} 29. e6 {[%emt 0:00:14]} Nf6 {[%emt 0:02:58]} 30. Ne4 {[%emt 0:09:33]} g5 {[%emt 0:00:28]} 31. e7 {[%emt 0:00:38]} Rxf7 {[%emt 0:00:46]} 32. e8=Q+ {[%emt 0:01:12]} Nxe8 {[%emt 0:00:13]} 33. Qxh5+ {[%emt 0:00:03]} Kg7 {[%emt 0:00:16]} 34. Nxd2 {[%emt 0:00:03]} Be2 {[%emt 0:02:21]} 35. Re1 {[%emt 0:00:01]} Bxh5 {[%emt 0:00:34]} 36. Rxe3 {[%emt 0:00:02]} Rf2 {[%emt 0:00:30]} 37. Rd3 {[%emt 0:00:45]} Bg6 {[%emt 0:00:21]} 38. Rd4 {[%emt 0:01:41]} Re2 {[%emt 0:00:36]} 39. Kg1 {[%emt 0:00:47]} Bf7 {[%emt 0:00:33]} 40. Kf1 {[%emt 0:00:26]} Re5 {[%emt 0:00:15]} 41. Ra4 {[%emt 0:09:21]} Bxa2 {[%emt 0:02:30]} 42. Rxa3 {[%emt 0:04:25]} Bf7 {[%emt 0:00:22]} 43. Kf2 {[%emt 0:01:33]} Rf5+ {[%emt 0:01:05]} 44. Ke3 {[%emt 0:01:12]} Nf6 {[%emt 0:00:24]} 45. Be4 {[%emt 0:02:05]} Rb5 {[%emt 0:03:27]} 46. h3 {[%emt 0:00:47]} Be6 {[%emt 0:04:17]} 47. Ra7+ {[%emt 0:00:08]} Kf8 {[%emt 0:00:42]} 48. g4 {[%emt 0:00:49]} Bd5 {[%emt 0:02:39]} 49. Bd3 {[%emt 0:03:06]} Rb4 {[%emt 0:02:26]} 50. Nf3 {[%emt 0:00:49]} Bxf3 {[%emt 0:01:34]} 51. Kxf3 {[%emt 0:00:03]} Rb3 {[%emt 0:00:36]} 52. Ke3 {[%emt 0:00:21]} Nd5+ {[%emt 0:00:07]} 53. Ke4 {[%emt 0:01:21]} Nf4 {[%emt 0:00:38]} 54. Bc4 {[%emt 0:00:06]} Rb4 {[%emt 0:02:08]} 55. Rc7 {[%emt 0:00:06]} Nxh3 {[%emt 0:01:22]} 56. Kf5 {[%emt 0:00:11]} Ke8 {[%emt 0:00:26]} 57. Be6 {[%emt 0:02:12]} Rf4+ {[%emt 0:03:21]} 58. Kg6 {[%emt 0:00:17]} Rf2 {[%emt 0:02:30]} 59. Bf5 {[%emt 0:00:54]} Kd8 {[%emt 0:05:06]} 60. Rd7+ {[%emt 0:01:10]} Ke8 {[%emt 0:00:01]} 61. Rh7 {[%emt 0:00:14]} Nf4+ {[%emt 0:00:34]} 62. Kxg5 {[%emt 0:00:43]} Nd5 {[%emt 0:00:17]} 63. Kg6 {[%emt 0:02:04]} Re2 {[%emt 0:01:40]} 64. Rh8+ {[%emt 0:02:47]} Ke7 {[%emt 0:00:02]} 65. Ra8 {[%emt 0:00:08]} Rf2 {[%emt 0:03:17]} 66. Ra7+ {[%emt 0:01:15]} Kd6 {[%emt 0:00:13]} 67. Ra6+ {[%emt 0:01:47]} Ke7 {[%emt 0:00:28]} 68. Kg7 {[%emt 0:00:49]} Re2 {[%emt 0:00:59]} 69. Ra7+ {[%emt 0:00:55]} Kd6 {[%emt 0:00:02]} 70. Ra6+ {[%emt 0:01:14]} Ke7 {[%emt 0:00:02]} 71. Kh6 {[%emt 0:00:52]} Rh2+ {[%emt 0:00:41]} 72. Kg6 {[%emt 0:00:05]} Re2 {[%emt 0:01:29]} 73. g5 {[%emt 0:02:39]} Nf4+ {[%emt 0:00:08]} 74. Kh6 {[%emt 0:00:04]} Rh2+ {[%emt 0:00:48]} 75. Kg7 {[%emt 0:00:04]} Rh5 {[%emt 0:00:27]} 76. Ra7+ {[%emt 0:00:10]} Kd6 {[%emt 0:00:11]} 77. Rd7+ {[%emt 0:00:29]} Ke5 {[%emt 0:00:32]} 1/2-1/2

[Event "Panevezys Elite Open 2019"]
[Site "Panevezys"]
[Date "2019.06.28"]
[Round "7.4"]
[White "Sulskis, Sarunas"]
[Black "Krykun, Yuriy"]
[Result "1/2-1/2"]
[ECO "C77"]
[WhiteElo "2528"]
[BlackElo "2342"]
[Annotator "ChessBase"]
[PlyCount "85"]
[EventDate "2019.06.24"]
[EventType "swiss"]
[EventCountry "LTU"]
[SourceTitle "playchess.com"]
[Source "ChessBase"]
[SourceQuality "1"]
[TimeControl "40/5400+30:1800+30"]

1. e4 {[%emt 0:00:00]} e5 {[%emt 0:00:44]} 2. Nf3 {[%emt 0:00:00]} Nc6 {[%emt 0:00:06]} 3. Bb5 {[%emt 0:00:00]} a6 {[%emt 0:00:45]} 4. Ba4 {[%emt 0:00:04]} Nf6 {[%emt 0:00:04]} 5. Qe2 {[%emt 0:00:26]} b5 {[%emt 0:02:15]} 6. Bb3 {[%emt 0:00:06]} Bc5 {[%emt 0:00:08]} 7. c3 {[%emt 0:00:57]} O-O {[%emt 0:05:12]} 8. d3 {[%emt 0:00:38]} d5 {[%emt 0:05:42]} 9. exd5 {[%emt 0:26:07]} Nxd5 {[%emt 0:00:30]} 10. Qe4 {[%emt 0:02:59]} Nde7 {[%emt 0:04:17]} 11. Bg5 {[%emt 0:07:11]} Bf5 {[%emt 0:06:32]} 12. Qxf5 {[%emt 0:01:23]} Nxf5 {[%emt 0:01:34]} 13. Bxd8 {[%emt 0:00:07]} Raxd8 {[%emt 0:06:14]} 14. Nbd2 {[%emt 0:00:05]} g6 {[%emt 0:02:14]} 15. Ke2 {[%emt 0:01:52]} Kg7 {[%emt 0:01:20]} 16. a4 Bb6 {[%emt 0:12:22]} 17. h4 {[%emt 0:06:11]} h6 {[%emt 0:00:53]} 18. axb5 {[%emt 0:12:56]} axb5 {[%emt 0:00:03]} 19. Ne4 {[%emt 0:00:20]} Nd6 20. Nxd6 {[%emt 0:08:01]} Rxd6 {[%emt 0:01:30]} 21. g4 {[%emt 0:06:03]} Re8 {[%emt 0:14:29]} 22. Bc2 {[%emt 0:02:12]} Nd8 {[%emt 0:00:11]} 23. Ra8 {[%emt 0:01:41]} Re7 {[%emt 0:00:24]} 24. Nd2 {[%emt 0:02:13]} Ne6 {[%emt 0:02:02]} 25. Ne4 {[%emt 0:00:36]} Rd8 {[%emt 0:00:35]} 26. Rxd8 {[%emt 0:04:25]} Nxd8 {[%emt 0:00:02]} 27. g5 {[%emt 0:00:24]} Ne6 {[%emt 0:04:14]} 28. Kf3 {[%emt 0:01:00]} c6 {[%emt 0:03:07]} 29. Bb3 {[%emt 0:02:43]} Nc5 {[%emt 0:01:04]} 30. Nxc5 {[%emt 0:03:59]} Bxc5 {[%emt 0:00:07]} 31. Ra1 {[%emt 0:00:18]} hxg5 {[%emt 0:02:13]} 32. hxg5 {[%emt 0:00:06]} Ra7 {[%emt 0:02:18]} 33. Rxa7 {[%emt 0:02:26]} Bxa7 {[%emt 0:00:07]} 34. Kg3 {[%emt 0:00:13]} Bc5 {[%emt 0:04:08]} 35. Bd1 {[%emt 0:00:58]} b4 {[%emt 0:02:27]} 36. Ba4 {[%emt 0:02:00]} bxc3 {[%emt 0:00:05]} 37. bxc3 {[%emt 0:00:03]} Be7 {[%emt 0:00:03]} 38. f4 {[%emt 0:01:31]} exf4+ {[%emt 0:01:14]} 39. Kxf4 {[%emt 0:00:17]} c5 {[%emt 0:00:03]} 40. Bb3 {[%emt 0:01:43]} f6 {[%emt 0:00:09]} 41. gxf6+ {[%emt 0:31:05]} Bxf6 {[%emt 0:30:02]} 42. Bd5 {[%emt 0:00:22]} Bxc3 {[%emt 0:00:04]} 43. Kg4 1/2-1/2

[Event "Panevezys Elite Open 2019"]
[Site "Panevezys"]
[Date "2019.06.28"]
[Round "7.5"]
[White "Gleizerov, Evgeny"]
[Black "Krivonosov, Oleg"]
[Result "1/2-1/2"]
[ECO "D30"]
[WhiteElo "2495"]
[BlackElo "2411"]
[Annotator "ChessBase"]
[PlyCount "29"]
[EventDate "2019.06.24"]
[EventType "swiss"]
[EventCountry "LTU"]
[SourceTitle "playchess.com"]
[Source "ChessBase"]
[SourceQuality "1"]
[TimeControl "40/5400+30:1800+30"]

1. d4 {[%emt 0:00:00]} d5 {[%emt 0:00:00]} 2. c4 {[%emt 0:00:30]} e6 {[%emt 0:00:30]} 3. Nf3 {[%emt 0:00:30]} Nf6 {[%emt 0:00:30]} 4. g3 {[%emt 0:00:30]} Bb4+ {[%emt 0:00:30]} 5. Nc3 {[%emt 0:00:30]} O-O {[%emt 0:01:28]} 6. Bg2 {[%emt 0:00:30]} c6 {[%emt 0:05:55]} 7. Qb3 {[%emt 0:03:33]} a5 {[%emt 0:01:57]} 8. a3 {[%emt 0:05:43]} Be7 {[%emt 0:02:10]} 9. O-O {[%emt 0:02:12]} Nbd7 {[%emt 0:08:49]} 10. Rd1 {[%emt 0:13:14]} a4 {[%emt 0:12:19]} 11. Qa2 {[%emt 0:10:16]} Qa5 {[%emt 0:07:28]} 12. Nd2 {[%emt 0:02:35]} b5 {[%emt 0:04:15]} 13. cxb5 {[%emt 0:00:31]} cxb5 {[%emt 0:00:30]} 14. e4 {[%emt 0:00:30]} Nb6 {[%emt 0:01:57]} 15. e5 {[%emt 0:04:53]} 1/2-1/2

[Event "Panevezys Elite Open 2019"]
[Site "Panevezys"]
[Date "2019.06.28"]
[Round "7.7"]
[White "Cholleti Sahajasri"]
[Black "Badelka, Olga"]
[Result "0-1"]
[ECO "D02"]
[WhiteElo "2207"]
[BlackElo "2391"]
[Annotator "NA"]
[PlyCount "74"]
[EventDate "2019.06.24"]
[EventType "swiss"]
[EventCountry "LTU"]
[SourceTitle "playchess.com"]
[Source "ChessBase"]
[SourceQuality "1"]
[TimeControl "40/5400+30:1800+30"]

1. Nf3 {[%emt 0:06:49]} d5 {[%emt 0:00:00]} 2. d4 {[%emt 0:00:22]} Nf6 {[%emt 0:00:03]} 3. c4 {[%emt 0:00:31]} e6 {[%emt 0:00:07]} 4. g3 {[%emt 0:00:38]} dxc4 {[%emt 0:00:26]} 5. Qa4+ {[%emt 0:05:19]} Nbd7 {[%emt 0:00:14]} 6. Qxc4 {[%emt 0:00:26]} c5 {[%emt 0:02:26]} 7. Bg2 {[%emt 0:09:52]} cxd4 {[%emt 0:03:36]} 8. Qxd4 {[%emt 0:03:01]} Bc5 {[%emt 0:00:22]} 9. Qd1 {[%emt 0:02:17]} O-O {[%emt 0:02:59]} 10. O-O {[%emt 0:00:06]} Qe7 {[%emt 0:05:15]} 11. Nc3 {[%emt 0:03:16]} Rd8 {[%emt 0:00:54]} 12. Qc2 {[%emt 0:00:46]} h6 {[%emt 0:00:17]} 13. b3 {[%emt 0:07:37]} e5 {[%emt 0:05:09]} 14. e3 {[%emt 0:08:43]} Nf8 {[%emt 0:09:54]} 15. Bb2 {[%emt 0:02:17]} Ng6 {[%emt 0:00:11]} 16. Rfd1 {[%emt 0:09:10]} Bg4 {[%emt 0:03:12]} 17. h3 {[%emt 0:00:17]} Be6 {[%emt 0:07:11]} 18. Nd2 {[%emt 0:09:51]} Rac8 {[%emt 0:05:15]} 19. Nde4 {[%emt 0:01:03]} Nxe4 {[%emt 0:02:53]} 20. Qxe4 {[%emt 0:00:40]} b6 {[%emt 0:00:23]} 21. Rac1 {[%emt 0:10:46]} f5 {[%emt 0:01:22]} 22. Qb1 {[%emt 0:00:33]} Qf7 {[%emt 0:02:18]} 23. Na4 {[%emt 0:03:17]} Bf8 {[%emt 0:01:12]} 24. Rxd8 {[%emt 0:01:14]} Rxd8 {[%emt 0:00:04]} 25. Qa1 {[%emt 0:00:58]} f4 {[%emt 0:10:27]} 26. Kh2 {[%emt 0:06:17]} Rd2 {[%emt 0:02:20]} 27. Rf1 {[%emt 0:02:48]} f3 {[%emt 0:01:33]} 28. Bh1 {[%emt 0:00:08]} Qf5 {[%emt 0:16:03]} 29. g4 {[%emt 0:00:27]} Qc2 {[%emt 0:00:12]} 30. Kg1 {[%emt 0:02:33]} b5 {[%emt 0:03:09]} 31. Rc1 {[%emt 0:00:12]} Qd3 {[%emt 0:00:04]} 32. Bc3 {[%emt 0:02:00]} Rc2 {[%emt 0:01:33]} 33. Rxc2 {[%emt 0:01:27]} Qxc2 {[%emt 0:00:04]} 34. Bxf3 {[%emt 0:00:04]} bxa4 {[%emt 0:00:18]} 35. Bxe5 {[%emt 0:00:12]} axb3 {[%emt 0:02:13]} 36. axb3 {[%emt 0:00:02]} Nxe5 {[%emt 0:00:11]} 37. Qxe5 {[%emt 0:00:03]} Qxb3 {[%emt 0:00:06]} 0-1

[Event "Panevezys Elite Open 2019"]
[Site "Panevezys"]
[Date "2019.06.28"]
[Round "7.9"]
[White "Sliwicka, Alicja"]
[Black "Juknis, Paulius"]
[Result "1/2-1/2"]
[ECO "C13"]
[WhiteElo "2261"]
[BlackElo "2169"]
[Annotator "NA"]
[PlyCount "71"]
[EventDate "2019.06.24"]
[EventType "swiss"]
[EventCountry "LTU"]
[SourceTitle "playchess.com"]
[Source "ChessBase"]
[SourceQuality "1"]
[TimeControl "40/5400+30:1800+30"]

1. e4 {[%emt 0:00:00]} e6 {[%emt 0:00:00]} 2. d4 {[%emt 0:00:00]} d5 {[%emt 0:00:00]} 3. Nc3 {[%emt 0:00:00]} Nf6 {[%emt 0:00:16]} 4. Bg5 {[%emt 0:00:00]} Be7 {[%emt 0:00:23]} 5. e5 {[%emt 0:00:09]} Nfd7 {[%emt 0:00:08]} 6. h4 {[%emt 0:00:09]} Nc6 {[%emt 0:00:12]} 7. Bxe7 {[%emt 0:03:57]} Qxe7 {[%emt 0:00:08]} 8. Qd2 {[%emt 0:03:10]} Nb6 {[%emt 0:00:15]} 9. f4 {[%emt 0:06:41]} Bd7 {[%emt 0:00:38]} 10. Nf3 {[%emt 0:00:55]} O-O-O {[%emt 0:03:20]} 11. h5 {[%emt 0:03:56]} h6 {[%emt 0:00:13]} 12. O-O-O {[%emt 0:00:48]} f6 {[%emt 0:00:56]} 13. Nh4 {[%emt 0:09:09]} Be8 {[%emt 0:00:56]} 14. g4 {[%emt 0:01:26]} fxe5 {[%emt 0:06:01]} 15. fxe5 {[%emt 0:04:53]} Kb8 {[%emt 0:07:30]} 16. a3 {[%emt 0:08:48]} a6 {[%emt 0:03:09]} 17. Kb1 {[%emt 0:00:25]} Rf8 {[%emt 0:07:45]} 18. Be2 {[%emt 0:07:21]} Nc4 {[%emt 0:12:52]} 19. Bxc4 {[%emt 0:03:51]} dxc4 {[%emt 0:00:05]} 20. Qe3 {[%emt 0:17:45]} Qg5 {[%emt 0:03:21]} 21. Qxg5 {[%emt 0:00:48]} hxg5 {[%emt 0:00:02]} 22. Ng2 {[%emt 0:00:51]} Rxd4 {[%emt 0:07:51]} 23. Rxd4 {[%emt 0:00:48]} Nxd4 {[%emt 0:00:03]} 24. Rd1 {[%emt 0:00:16]} Bc6 {[%emt 0:06:17]} 25. Rxd4 {[%emt 0:03:22]} Bxg2 {[%emt 0:00:11]} 26. Rd7 {[%emt 0:01:31]} Rf1+ {[%emt 0:24:08]} 27. Ka2 {[%emt 0:00:11]} Bh3 {[%emt 0:00:40]} 28. Rxg7 {[%emt 0:02:05]} Bxg4 {[%emt 0:00:09]} 29. h6 {[%emt 0:01:46]} Rh1 {[%emt 0:00:16]} 30. h7 {[%emt 0:00:38]} Ka7 {[%emt 0:00:09]} 31. Ne4 {[%emt 0:01:36]} Rh2 {[%emt 0:03:50]} 32. Rxc7 {[%emt 0:08:00]} Bf5 {[%emt 0:01:09]} 33. Nxg5 {[%emt 0:02:25]} Bxc2 {[%emt 0:00:15]} 34. Rxc4 {[%emt 0:00:21]} Bxh7 {[%emt 0:00:19]} 35. Nxh7 {[%emt 0:02:12]} Rxh7 {[%emt 0:00:07]} 36. Kb3 {[%emt 0:02:29]} 1/2-1/2

[Event "Panevezys Elite Open 2019"]
[Site "Panevezys"]
[Date "2019.06.28"]
[Round "7.10"]
[White "Zhukov, Anton"]
[Black "Harshita Guddanti"]
[Result "1-0"]
[ECO "A57"]
[WhiteElo "2178"]
[BlackElo "2072"]
[Annotator "NA"]
[PlyCount "75"]
[EventDate "2019.06.24"]
[EventType "swiss"]
[EventCountry "LTU"]
[SourceTitle "playchess.com"]
[Source "ChessBase"]
[SourceQuality "1"]
[TimeControl "40/5400+30:1800+30"]

1. d4 {[%emt 0:00:00]} Nf6 {[%emt 0:00:07]} 2. c4 {[%emt 0:00:00]} c5 {[%emt 0:00:48]} 3. d5 {[%emt 0:00:00]} b5 {[%emt 0:00:09]} 4. Qc2 {[%emt 0:00:38]} bxc4 {[%emt 0:00:30]} 5. e4 {[%emt 0:00:23]} e6 {[%emt 0:01:09]} 6. Nc3 {[%emt 0:00:27]} exd5 {[%emt 0:02:56]} 7. e5 {[%emt 0:00:20]} Bb7 {[%emt 0:19:43]} 8. exf6 {[%emt 0:09:48]} Qxf6 {[%emt 0:00:20]} 9. Nf3 {[%emt 0:02:38]} h6 {[%emt 0:15:25]} 10. Qd1 {[%emt 0:06:27]} Qe6+ {[%emt 0:09:30]} 11. Qe2 {[%emt 0:03:14]} g5 {[%emt 0:01:25]} 12. Bd2 {[%emt 0:12:45]} Na6 {[%emt 0:06:32]} 13. a3 {[%emt 0:15:54]} Bg7 {[%emt 0:04:45]} 14. O-O-O {[%emt 0:02:55]} O-O {[%emt 0:02:40]} 15. Re1 {[%emt 0:06:34]} Qb6 {[%emt 0:11:29]} 16. h4 {[%emt 0:01:45]} f6 {[%emt 0:02:40]} 17. hxg5 {[%emt 0:03:19]} fxg5 {[%emt 0:00:07]} 18. Qd1 {[%emt 0:04:45]} Nc7 {[%emt 0:03:09]} 19. Qc2 {[%emt 0:08:26]} Ne6 {[%emt 0:00:46]} 20. Na4 {[%emt 0:08:21]} Qd6 {[%emt 0:02:05]} 21. Bc3 {[%emt 0:01:20]} Nd4 {[%emt 0:03:08]} 22. Nxd4 {[%emt 0:00:30]} cxd4 {[%emt 0:01:06]} 23. Bb4 {[%emt 0:00:05]} Qf4+ {[%emt 0:00:06]} 24. Kb1 {[%emt 0:00:20]} d3 {[%emt 0:04:50]} 25. Qd1 {[%emt 0:02:12]} d6 {[%emt 0:02:47]} 26. Re6 {[%emt 0:01:06]} Rad8 {[%emt 0:01:07]} 27. f3 {[%emt 0:00:49]} d4 {[%emt 0:02:33]} 28. b3 {[%emt 0:02:24]} Bd5 {[%emt 0:00:33]} 29. Re7 {[%emt 0:00:26]} a5 {[%emt 0:00:43]} 30. Bxa5 {[%emt 0:01:47]} Rb8 {[%emt 0:01:00]} 31. Bb4 {[%emt 0:00:16]} Bc6 {[%emt 0:00:35]} 32. Nb2 {[%emt 0:00:34]} Qf6 {[%emt 0:00:22]} 33. Rxg7+ {[%emt 0:00:48]} Kxg7 {[%emt 0:00:32]} 34. Nxc4 {[%emt 0:00:07]} Rfd8 {[%emt 0:00:20]} 35. Bxd3 {[%emt 0:00:23]} d5 {[%emt 0:00:08]} 36. Nb2 {[%emt 0:00:40]} Re8 {[%emt 0:00:19]} 37. Bc2 {[%emt 0:00:30]} Rb5 {[%emt 0:00:58]} 38. Qd3 {[%emt 0:00:12]} 1-0